[Event "Marienbad B2-IM 2024"]
[Site "Marianske Lazne"]
[Date "2024.01.18"]
[Round "7.20"]
[White "Pisk, Petr"]
[Black "Ivanov, Mike"]
[Result "0-1"]
[ECO "A43"]
[WhiteElo "2295"]
[BlackElo "2356"]
[Annotator "TA"]
[PlyCount "112"]
[EventDate "2024.01.10"]
[EventType "tourn"]
[EventCountry "CZE"]
[SourceTitle "playchess.com"]
[Source "ChessBase"]
[SourceQuality "1"]
[TimeControl "40/5400+30:1800+30"]

{[%evp 9,112,-1,14,0,0,0,4,0,8,2,4,0,0,-1,0,-31,-26,-21,-25,-25,-22,-33,-27,-45,-36,-39,-38,-53,-42,-70,-62,-50,-50,-53,-50,-49,-50,-50,-25,-20,-22,-19,-23,-50,-15,-10,-30,-25,0,0,0,0,0,-16,-15,-25,-6,-38,-24,-141,0,0,0,0,0,-16,-16,-53,-7,-12,-5,-39,-47,-58,-45,-59,-32,-38,-21,-29,-17,-57,-58,-64,-108,-158,-146,-149,-8,-693,-681,-1262,-1201,-29957,-29962,-29973,-29974,-29977,-29976,-29974,-29974,-29979,-29980,-29981,-29982]} 1. d4 {[%emt 0:00:09]} c5 {[%emt 0:00:06]} 2. c3 {[%emt 0:07:56]} e6 {[%emt 0:00:08]} 3. Nf3 {[%emt 0:01:08]} Nc6 {[%emt 0:05:16]} 4. g3 {[%emt 0:03:16]} Nf6 {[%emt 0:01:24]} 5. Bg2 {[%emt 0:03:37]} b6 {[%emt 0:00:20]} 6. Ne5 {[%emt 0:04:41] A46: 1 d4 Nf6 2 Nf3 e6: Torre, London and Colle Systems.} Bb7 {[%emt 0:00:30]} 7. Nxc6 {[%emt 0:00:21]} Bxc6 {[%emt 0:00:20]} 8. Bxc6 {[%emt 0:06:34] The position is equal.} dxc6 {[%emt 0:00:02] [#]} 9. dxc5 $146 {[%emt 0:04:36]} ({Predecessor:} 9. Bg5 Qd5 10. O-O Qxg5 11. Qa4 Qd5 12. c4 Qd7 13. dxc5 Bxc5 14. Rd1 Qc7 15. Nc3 {0-1 Muckle,R (1957)-Lopez Rojas,J (2190) Rheinland Pfalz op 9th 2017 (2)}) 9... Qxd1+ {[%emt 0:02:36]} (9... bxc5 10. Qxd8+ Rxd8 11. Nd2 $14) 10. Kxd1 {[%emt 0:00:02]} Ng4 {[%emt 0:00:32]} (10... bxc5 11. Kc2 $14) 11. Ke1 {[%emt 0:02:00]} Bxc5 {[%emt 0:00:19]} 12. e3 {[%emt 0:02:08]} (12. f3 $5 {[%cal Rf3g4]} Ne5 13. Nd2 $11) 12... h5 {[%emt 0:03:41]} 13. h3 {[%emt 0:01:26]} Ne5 {[%emt 0:00:25]} 14. Ke2 {[%emt 0:00:33] White is weak on the light squares} O-O-O {[%emt 0:01:26]} 15. Nd2 {[%emt 0:06:20]} Rd7 {[%emt 0:16:38]} 16. Nb3 {[%emt 0:02:28]} Be7 {[%emt 0:00:42]} 17. e4 {[%emt 0:18:06]} c5 {[%emt 0:03:50]} 18. f4 {[%emt 0:04:44]} (18. Bf4 Nd3 19. Rab1 h4 $17) 18... Nd3 {[%emt 0:04:04]} 19. Rb1 {[%emt 0:01:09]} f5 {[%emt 0:05:25] Black is much more active. The white rooks are badly placed.} 20. Be3 {[%emt 0:05:43]} h4 {[%emt 0:07:59]} 21. g4 {[%emt 0:05:54]} fxe4 {[%emt 0:01:01]} 22. Nd2 {[%emt 0:00:20]} Rf8 {[%emt 0:01:26]} 23. Rhf1 {[%emt 0:01:59]} Bd6 {[%emt 0:00:41][%cal Rd3f4]} 24. f5 $1 {[%emt 0:02:41]} exf5 {[%emt 0:00:09]} 25. Rxf5 {[%emt 0:00:07]} Re8 {[%emt 0:02:43]} 26. a4 {[%emt 0:05:09]} Bg3 {[%emt 0:04:31]} 27. Nc4 {[%emt 0:00:39]} Kb7 {[%emt 0:08:47]} 28. Rbf1 {[%emt 0:01:00]} Ne5 {[%emt 0:07:44]} 29. Nxe5 {[%emt 0:01:10]} Rxe5 {[%emt 0:00:47]} 30. Rxe5 {[%emt 0:04:42]} Bxe5 $11 {[%emt 0:00:02][%mdl 4096] Endgame KRB-KRB} 31. Rf8 {[%emt 0:00:08]} Kc6 {[%emt 0:02:27]} 32. Rh8 {[%emt 0:01:52]} Bg3 {[%emt 0:04:46]} 33. Bg5 {[%emt 0:00:44]} Kd5 {[%emt 0:02:01]} 34. Bxh4 {[%emt 0:00:56]} (34. Kd2 $11 {remains equal.}) 34... Bf4 {[%emt 0:07:28]} ({Black should play} 34... Bxh4 $17 35. Rxh4 Kc4) 35. b3 {[%emt 0:01:10]} Kc6 {[%emt 0:00:19]} 36. Be1 {[%emt 0:00:30] Inhibits Rd2+.} Rd3 {[%emt 0:01:05]} 37. Re8 {[%emt 0:01:35]} Re3+ {[%emt 0:03:25]} 38. Kd1 {[%emt 0:00:21]} Rxh3 {[%emt 0:00:36]} (38... g5 $15) 39. Rxe4 {[%emt 0:00:12]} g5 {[%emt 0:00:14]} 40. Re6+ {[%emt 0:01:26]} Kd5 {[%emt 0:01:18]} 41. Re7 {[%emt 0:02:09]} a5 {[%emt 0:12:12]} 42. Rb7 {[%emt 0:19:30]} Kc6 {[%emt 0:01:27]} 43. Rg7 {[%emt 0:05:10]} Rh2 {[%emt 0:05:36] aiming for ...Rb2.} 44. Rg6+ {[%emt 0:01:15]} Kb7 {[%emt 0:02:59] Black wants to play ...Rb2.} 45. b4 {[%emt 0:04:32]} Ra2 $1 {[%emt 0:01:44]} 46. Rg7+ {[%emt 0:00:12]} Kc6 {[%emt 0:01:46]} 47. Rg6+ {[%emt 0:00:15]} (47. bxa5 $142 bxa5 48. c4) 47... Kd5 $17 {[%emt 0:00:24] Strongly threatening ...Ke4.} 48. Rxb6 {[%emt 0:00:26] [#]} Ke4 {[%emt 0:00:46]} (48... Rxa4 $6 49. Rb5 axb4 50. cxb4 $11) ({Black should try} 48... c4 $1 $17 {...Ke4 would be deadly.} 49. Ra6 (49. bxa5 $2 Ke4 $19) 49... Ke4 50. Rxa5 (50. bxa5 Kd3) 50... Kf3) 49. Rb7 $2 {[%emt 0:01:05][%mdl 8192] White does not recover from this.} (49. bxa5 $2 {perishes.} Kd3 50. Rb1 c4 $19) (49. bxc5 $11 Kd3 50. Rb1) 49... Kf3 $19 {[%emt 0:03:00] Hoping for ...Ra1+.} (49... Rxa4 50. Kc2 $15) 50. Re7 {[%emt 0:00:40]} c4 {[%emt 0:01:33]} ({And not} 50... Kxg4 51. bxc5 Kf3 52. c6 $17) (50... Rxa4 51. Kc2 $17) 51. bxa5 {[%emt 0:00:38]} Rxa4 {[%emt 0:00:15] Black mates.} ({Worse is} 51... Kxg4 52. a6 Rxa4 53. a7 $11) 52. Kc2 {[%emt 0:00:27]} Rxa5 {[%emt 0:01:01]} 53. Kb2 {[%emt 0:00:34]} Rb5+ {[%emt 0:01:28]} 54. Kc2 {[%emt 0:00:06]} Re5 {[%emt 0:01:37]} 55. Rxe5 {[%emt 0:00:16]} Bxe5 {[%emt 0:00:01]} 56. Kb2 {[%emt 0:00:28]} Ke2 {[%emt 0:00:42] Weighted Error Value: White=0.41/Black=0.12 (very precise)} 0-1

[Event "Marienbad B2-IM 2024"]
[Site "Marianske Lazne"]
[Date "2024.01.19"]
[Round "8.16"]
[White "Wang, Yukun"]
[Black "Ivanov, Mike"]
[Result "1-0"]
[ECO "C14"]
[WhiteElo "2117"]
[BlackElo "2356"]
[Annotator "RC"]
[PlyCount "95"]
[EventDate "2024.01.10"]
[EventType "tourn"]
[EventCountry "CZE"]
[SourceTitle "playchess.com"]
[Source "ChessBase"]
[SourceQuality "1"]
[TimeControl "40/5400+30:1800+30"]

1. e4 {[%emt 0:00:03]} e6 {[%emt 0:00:06]} 2. d4 {[%emt 0:00:04]} d5 {[%emt 0:00:03]} 3. Nc3 {[%emt 0:00:04]} Nf6 {[%emt 0:00:05]} 4. Bg5 {[%emt 0:00:51]} Be7 {[%emt 0:00:13]} 5. e5 {[%emt 0:00:04]} Nfd7 {[%emt 0:00:08]} 6. Bxe7 {[%emt 0:00:07]} Qxe7 {[%emt 0:00:06]} 7. Nb5 {[%emt 0:00:37]} Nb6 {[%emt 0:09:01]} 8. c3 {[%emt 0:00:12]} O-O {[%emt 0:01:55]} 9. f4 {[%emt 0:03:07]} Bd7 {[%emt 0:05:37]} 10. Nf3 {[%emt 0:02:19]} Bxb5 {[%emt 0:04:28]} 11. Bxb5 {[%emt 0:00:07]} c5 {[%emt 0:01:01]} 12. Bd3 {[%emt 0:01:47]} f6 {[%emt 0:04:55]} 13. dxc5 {[%emt 0:07:50]} N6d7 {[%emt 0:09:59]} 14. b4 {[%emt 0:01:56]} Nc6 {[%emt 0:04:22]} 15. O-O {[%emt 0:01:54]} fxe5 {[%emt 0:13:32]} 16. fxe5 {[%emt 0:01:17]} g6 {[%emt 0:05:59]} 17. Qe2 {[%emt 0:01:22]} a5 {[%emt 0:00:53]} 18. a3 {[%emt 0:03:12]} Qg7 {[%emt 0:02:56]} 19. Bb5 {[%emt 0:32:51]} Ncxe5 {[%emt 0:11:26]} 20. Nd4 {[%emt 0:00:30]} Rfe8 {[%emt 0:09:42]} 21. Rae1 {[%emt 0:01:12]} Rac8 {[%emt 0:01:10]} 22. Qd2 {[%emt 0:01:32]} Qe7 {[%emt 0:02:04]} 23. Bxd7 {[%emt 0:02:57]} Nc4 {[%emt 0:00:08]} 24. Bxe6+ {[%emt 0:05:28]} Qxe6 {[%emt 0:00:15]} 25. Rxe6 {[%emt 0:00:41]} Nxd2 {[%emt 0:00:07]} 26. Rxe8+ {[%emt 0:01:20]} Rxe8 {[%emt 0:00:01]} 27. Rd1 {[%emt 0:00:13]} Nc4 {[%emt 0:01:45]} 28. Nb5 {[%emt 0:04:30]} Re5 {[%emt 0:00:46]} 29. Nd6 {[%emt 0:01:28]} Nxd6 {[%emt 0:02:21]} 30. cxd6 {[%emt 0:00:01]} Kf7 {[%emt 0:00:10]} 31. c4 {[%emt 0:00:07]} Ke6 {[%emt 0:00:55]} 32. c5 {[%emt 0:00:07]} axb4 {[%emt 0:01:37]} 33. axb4 {[%emt 0:00:06]} Kd7 {[%emt 0:01:37]} 34. Rf1 {[%emt 0:08:23]} d4 {[%emt 0:03:48]} 35. Rf7+ {[%emt 0:01:02]} Kc8 {[%emt 0:01:28]} 36. Rc7+ {[%emt 0:00:35]} Kb8 {[%emt 0:00:01]} 37. Rxh7 {[%emt 0:00:43]} Rd5 {[%emt 0:00:56]} 38. Kf1 {[%emt 0:00:15]} b6 {[%emt 0:01:53]} 39. Rc7 {[%emt 0:00:42]} d3 {[%emt 0:01:20]} 40. Ke1 {[%emt 0:00:10]} Rd4 {[%emt 0:00:22]} 41. Kd2 {[%emt 0:31:19]} Rd5 {[%emt 0:10:20]} 42. h4 {[%emt 0:00:00]} Rd4 {[%emt 0:00:36]} 43. g4 {[%emt 0:00:00]} Rd5 {[%emt 0:04:00]} 44. g5 {[%emt 0:00:00]} bxc5 {[%emt 0:00:26]} 45. bxc5 {[%emt 0:00:00]} Rd4 {[%emt 0:01:27]} 46. h5 {[%emt 0:00:00]} gxh5 {[%emt 0:01:52]} 47. g6 {[%emt 0:00:00]} Re4 {[%emt 0:00:44]} 48. g7 {[%emt 0:00:00]} 1-0

[Event "Marienbad B2-IM 2024"]
[Site "Marianske Lazne"]
[Date "2024.01.19"]
[Round "8.17"]
[White "Lima, Darcy"]
[Black "Pisk, Petr"]
[Result "1/2-1/2"]
[ECO "A11"]
[WhiteElo "2370"]
[BlackElo "2295"]
[Annotator "RC"]
[PlyCount "49"]
[EventDate "2024.01.10"]
[EventType "tourn"]
[EventCountry "CZE"]
[SourceTitle "playchess.com"]
[Source "ChessBase"]
[SourceQuality "1"]
[TimeControl "40/5400+30:1800+30"]

1. c4 {[%emt 0:00:30]} c6 {[%emt 0:01:12]} 2. Nf3 {[%emt 0:00:23]} Nf6 {[%emt 0:00:13]} 3. g3 {[%emt 0:00:09]} d5 {[%emt 0:00:09]} 4. Bg2 {[%emt 0:00:12]} Bg4 {[%emt 0:01:06]} 5. Ne5 {[%emt 0:00:10]} Bf5 {[%emt 0:04:32]} 6. cxd5 {[%emt 0:06:17]} cxd5 {[%emt 0:02:53]} 7. Qa4+ {[%emt 0:01:46]} Nc6 {[%emt 0:20:52]} 8. Nxc6 {[%emt 0:00:55]} Qd7 {[%emt 0:02:01]} 9. Nc3 {[%emt 0:00:34]} bxc6 {[%emt 0:08:31]} 10. d3 {[%emt 0:01:45]} e6 {[%emt 0:02:50]} 11. O-O {[%emt 0:15:52]} h6 {[%emt 0:07:01]} 12. e4 {[%emt 0:12:56]} Bh7 {[%emt 0:03:56]} 13. e5 {[%emt 0:01:50]} Ng8 {[%emt 0:01:32]} 14. d4 {[%emt 0:00:21]} Ne7 {[%emt 0:04:34]} 15. b3 {[%emt 0:10:19]} Nc8 {[%emt 0:03:38]} 16. Ba3 {[%emt 0:00:32]} Nb6 {[%emt 0:00:52]} 17. Qa5 {[%emt 0:00:31]} Bxa3 {[%emt 0:00:35]} 18. Qxa3 {[%emt 0:00:02]} Qe7 {[%emt 0:06:58]} 19. Qa5 {[%emt 0:00:55]} O-O {[%emt 0:00:45]} 20. Rac1 {[%emt 0:00:20]} f6 {[%emt 0:02:14]} 21. Nd1 {[%emt 0:06:17]} fxe5 {[%emt 0:01:18]} 22. dxe5 {[%emt 0:00:01]} Rac8 {[%emt 0:01:28]} 23. Qd2 {[%emt 0:06:05]} c5 {[%emt 0:00:57]} 24. Ne3 {[%emt 0:01:07]} Rfd8 {[%emt 0:01:41]} 25. Rfd1 {[%emt 0:01:39]} 1/2-1/2

[Event "Marienbad B2-IM 2024"]
[Site "Marianske Lazne"]
[Date "2024.01.19"]
[Round "8.18"]
[White "Kejna, Piotr"]
[Black "Balinski, Damian"]
[Result "1/2-1/2"]
[ECO "C47"]
[WhiteElo "2269"]
[BlackElo "2226"]
[Annotator "RC"]
[PlyCount "33"]
[EventDate "2024.01.10"]
[EventType "tourn"]
[EventCountry "CZE"]
[SourceTitle "playchess.com"]
[Source "ChessBase"]
[SourceQuality "1"]
[TimeControl "40/5400+30:1800+30"]

1. e4 {[%emt 0:00:03]} e5 {[%emt 0:00:03]} 2. Nf3 {[%emt 0:00:09]} Nf6 {[%emt 0:00:05]} 3. Nc3 {[%emt 0:00:05]} Nc6 {[%emt 0:00:05]} 4. d4 {[%emt 0:00:06]} exd4 {[%emt 0:00:07]} 5. Nxd4 {[%emt 0:00:05]} Bb4 {[%emt 0:00:15]} 6. Nxc6 {[%emt 0:00:08]} bxc6 {[%emt 0:00:07]} 7. Bd3 {[%emt 0:00:05]} O-O {[%emt 0:00:15]} 8. O-O {[%emt 0:00:12]} d5 {[%emt 0:00:32]} 9. exd5 {[%emt 0:00:23]} Bg4 {[%emt 0:00:54]} 10. f3 {[%emt 0:02:15]} Bh5 {[%emt 0:00:03]} 11. dxc6 {[%emt 0:06:55]} Qd4+ {[%emt 0:00:09]} 12. Kh1 {[%emt 0:00:07]} Bxc3 {[%emt 0:00:05]} 13. bxc3 {[%emt 0:00:05]} Qxc3 {[%emt 0:00:08]} 14. Rb1 {[%emt 0:03:21]} Bg6 {[%emt 0:00:10]} 15. Bb2 {[%emt 0:03:00]} Qxc6 {[%emt 0:00:11]} 16. Bxf6 {[%emt 0:01:13]} Qxf6 {[%emt 0:00:13]} 17. Bxg6 {[%emt 0:00:38]} 1/2-1/2

[Event "Marienbad B2-IM 2024"]
[Site "Marianske Lazne"]
[Date "2024.01.19"]
[Round "8.19"]
[White "Lim, Zhuo Ren"]
[Black "Pavlis, Matej"]
[Result "1-0"]
[ECO "D34"]
[WhiteElo "2218"]
[BlackElo "2088"]
[Annotator "RC"]
[PlyCount "37"]
[EventDate "2024.01.10"]
[EventType "tourn"]
[EventCountry "CZE"]
[SourceTitle "playchess.com"]
[Source "ChessBase"]
[SourceQuality "1"]
[TimeControl "40/5400+30:1800+30"]

1. Nf3 {[%emt 0:01:28]} Nf6 {[%emt 0:00:14]} 2. c4 {[%emt 0:00:11]} e6 {[%emt 0:00:05]} 3. g3 {[%emt 0:00:09]} d5 {[%emt 0:00:08]} 4. Bg2 {[%emt 0:00:12]} c5 {[%emt 0:01:19]} 5. cxd5 {[%emt 0:00:33]} exd5 {[%emt 0:00:08]} 6. d4 {[%emt 0:00:09]} Nc6 {[%emt 0:00:10]} 7. O-O {[%emt 0:00:20]} Be7 {[%emt 0:00:09]} 8. Nc3 {[%emt 0:00:27]} O-O {[%emt 0:00:05]} 9. Bg5 {[%emt 0:00:35]} cxd4 {[%emt 0:00:52]} 10. Nxd4 {[%emt 0:00:12]} h6 {[%emt 0:00:05]} 11. Be3 {[%emt 0:01:06]} Re8 {[%emt 0:01:49]} 12. Rc1 {[%emt 0:00:35]} Bg4 {[%emt 0:04:03]} 13. h3 {[%emt 0:00:50]} Be6 {[%emt 0:00:05]} 14. Qa4 {[%emt 0:03:55]} Na5 {[%emt 0:20:35]} 15. Nxe6 {[%emt 0:03:21]} fxe6 {[%emt 0:00:10]} 16. Bd4 {[%emt 0:01:49]} a6 {[%emt 0:04:31]} 17. Rfd1 {[%emt 0:01:41]} Nc4 {[%emt 0:08:33]} 18. Nxd5 {[%emt 0:09:16]} exd5 {[%emt 0:10:00]} 19. Bxf6 {[%emt 0:00:21]} 1-0

[Event "Marienbad B2-IM 2024"]
[Site "Marianske Lazne"]
[Date "2024.01.19"]
[Round "8.20"]
[White "Plischki, Sebastian"]
[Black "Luberanski, Jakub"]
[Result "1/2-1/2"]
[ECO "A14"]
[WhiteElo "2345"]
[BlackElo "2278"]
[Annotator "RC"]
[PlyCount "54"]
[EventDate "2024.01.10"]
[EventType "tourn"]
[EventCountry "CZE"]
[SourceTitle "playchess.com"]
[Source "ChessBase"]
[SourceQuality "1"]
[TimeControl "40/5400+30:1800+30"]

1. Nf3 {[%emt 0:00:05]} Nf6 {[%emt 0:03:24]} 2. c4 {[%emt 0:00:14]} e6 {[%emt 0:00:06]} 3. g3 {[%emt 0:00:06]} d5 {[%emt 0:00:04]} 4. Bg2 {[%emt 0:00:08]} Be7 {[%emt 0:00:04]} 5. O-O {[%emt 0:00:25]} O-O {[%emt 0:00:04]} 6. d4 {[%emt 0:00:15]} dxc4 {[%emt 0:00:03]} 7. Qc2 {[%emt 0:00:12]} a6 {[%emt 0:00:04]} 8. a4 {[%emt 0:00:15]} Bd7 {[%emt 0:00:37]} 9. Qxc4 {[%emt 0:00:16]} Bc6 {[%emt 0:00:04]} 10. Bg5 {[%emt 0:00:23]} Bd5 {[%emt 0:02:12]} 11. Qc2 {[%emt 0:00:16]} Be4 {[%emt 0:05:04]} 12. Qc1 {[%emt 0:00:15]} h6 {[%emt 0:00:19]} 13. Bxf6 {[%emt 0:00:12]} Bxf6 {[%emt 0:00:03]} 14. Nbd2 {[%emt 0:00:49]} Bxf3 {[%emt 0:00:23]} 15. Nxf3 {[%emt 0:01:09]} a5 {[%emt 0:00:24]} 16. Qc3 {[%emt 0:07:27]} Nc6 {[%emt 0:04:34]} 17. Rfd1 {[%emt 0:03:31]} Nb4 {[%emt 0:00:18]} 18. e3 {[%emt 0:02:15]} c6 {[%emt 0:00:17]} 19. h4 {[%emt 0:00:42]} Rc8 {[%emt 0:02:52]} 20. Qc4 {[%emt 0:05:28]} Qb6 {[%emt 0:08:52]} 21. Rac1 {[%emt 0:03:14]} Rfd8 {[%emt 0:01:09]} 22. Qe2 {[%emt 0:03:04]} c5 {[%emt 0:02:58]} 23. dxc5 {[%emt 0:03:32]} Rxd1+ {[%emt 0:00:58]} 24. Qxd1 {[%emt 0:00:10]} Rxc5 {[%emt 0:00:15]} 25. Rxc5 {[%emt 0:00:08]} Qxc5 {[%emt 0:00:04]} 26. b3 {[%emt 0:01:24]} Nd5 {[%emt 0:05:08]} 27. Bf1 {[%emt 0:01:58]} Nc3 {[%emt 0:02:07]} 1/2-1/2

[Event "Marienbad B2-IM 2024"]
[Site "Marianske Lazne"]
[Date "2024.01.20"]
[Round "9.16"]
[White "Luberanski, Jakub"]
[Black "Wang, Yukun"]
[Result "1/2-1/2"]
[ECO "A04"]
[WhiteElo "2278"]
[BlackElo "2117"]
[Annotator "ChessBase"]
[PlyCount "41"]
[EventDate "2024.01.10"]
[EventType "tourn"]
[EventCountry "CZE"]
[SourceTitle "playchess.com"]
[Source "ChessBase"]
[SourceQuality "1"]
[TimeControl "40/5400+30:1800+30"]

1. Nf3 {[%emt 0:03:46]} c5 {[%emt 0:00:12]} 2. e3 {[%emt 0:00:37]} Nf6 {[%emt 0:00:16]} 3. b3 {[%emt 0:00:06]} e6 {[%emt 0:00:17]} 4. Bb2 {[%emt 0:00:10]} b6 {[%emt 0:00:25]} 5. Be2 {[%emt 0:00:21]} Bb7 {[%emt 0:00:08]} 6. O-O {[%emt 0:00:06]} Be7 {[%emt 0:00:06]} 7. d4 {[%emt 0:00:24]} d5 {[%emt 0:01:59]} 8. c4 {[%emt 0:04:34]} O-O {[%emt 0:00:46]} 9. cxd5 {[%emt 0:00:30]} Nxd5 {[%emt 0:00:23]} 10. Nbd2 {[%emt 0:02:13]} cxd4 {[%emt 0:00:43]} 11. Nxd4 {[%emt 0:00:05]} Nc6 {[%emt 0:00:53]} 12. Nxc6 {[%emt 0:01:49]} Bxc6 {[%emt 0:01:42]} 13. Rc1 {[%emt 0:00:31]} Bb7 {[%emt 0:00:12]} 14. Nc4 {[%emt 0:01:24]} Rc8 {[%emt 0:01:26]} 15. a3 {[%emt 0:01:05]} Bf6 {[%emt 0:02:03]} 16. Qd2 {[%emt 0:00:27]} Nf4 {[%emt 0:03:06]} 17. exf4 {[%emt 0:02:31]} Qxd2 {[%emt 0:00:06]} 18. Nxd2 {[%emt 0:00:04]} Bxb2 {[%emt 0:00:05]} 19. Rxc8 {[%emt 0:00:05]} Rxc8 {[%emt 0:00:07]} 20. Nc4 {[%emt 0:00:04]} Bf6 {[%emt 0:00:07]} 21. Nd6 {[%emt 0:02:54]} 1/2-1/2

[Event "Marienbad B2-IM 2024"]
[Site "Marianske Lazne"]
[Date "2024.01.20"]
[Round "9.17"]
[White "Pavlis, Matej"]
[Black "Plischki, Sebastian"]
[Result "1/2-1/2"]
[ECO "A48"]
[WhiteElo "2088"]
[BlackElo "2345"]
[Annotator "ChessBase"]
[PlyCount "45"]
[EventDate "2024.01.10"]
[EventType "tourn"]
[EventCountry "CZE"]
[SourceTitle "playchess.com"]
[Source "ChessBase"]
[SourceQuality "1"]
[TimeControl "40/5400+30:1800+30"]

1. Nf3 {[%emt 0:00:02]} Nf6 {[%emt 0:00:22]} 2. d4 {[%emt 0:00:08]} g6 {[%emt 0:00:33]} 3. c4 {[%emt 0:00:13]} Bg7 {[%emt 0:00:08]} 4. Nc3 {[%emt 0:00:08]} O-O {[%emt 0:00:16]} 5. e4 {[%emt 0:01:25]} d6 {[%emt 0:00:11]} 6. g3 {[%emt 0:00:33]} c5 {[%emt 0:04:14]} 7. Bg2 {[%emt 0:01:03]} cxd4 {[%emt 0:01:54]} 8. Nxd4 {[%emt 0:00:26]} Nc6 {[%emt 0:01:57]} 9. Nde2 {[%emt 0:05:29]} a6 {[%emt 0:02:50]} 10. O-O {[%emt 0:01:28]} Rb8 {[%emt 0:01:35]} 11. a4 {[%emt 0:03:05]} Bd7 {[%emt 0:06:35]} 12. Bf4 {[%emt 0:12:47]} Qa5 {[%emt 0:03:47]} 13. h3 {[%emt 0:07:51]} Rfc8 {[%emt 0:01:11]} 14. Rc1 {[%emt 0:00:53]} Nd8 {[%emt 0:07:53]} 15. b3 {[%emt 0:03:14]} Ne6 {[%emt 0:00:22]} 16. Bd2 {[%emt 0:01:10]} Qd8 {[%emt 0:03:50]} 17. Be3 {[%emt 0:06:59]} b5 {[%emt 0:06:54]} 18. axb5 {[%emt 0:03:38]} axb5 {[%emt 0:00:06]} 19. e5 {[%emt 0:00:35]} dxe5 {[%emt 0:01:32]} 20. Ba7 {[%emt 0:00:05]} Ra8 {[%emt 0:05:48]} 21. Bxa8 {[%emt 0:00:09]} Rxa8 {[%emt 0:00:04]} 22. Be3 {[%emt 0:00:19]} bxc4 {[%emt 0:00:11]} 23. bxc4 {[%emt 0:00:06]} 1/2-1/2

[Event "Marienbad B2-IM 2024"]
[Site "Marianske Lazne"]
[Date "2024.01.20"]
[Round "9.18"]
[White "Balinski, Damian"]
[Black "Lim, Zhuo Ren"]
[Result "0-1"]
[ECO "E61"]
[WhiteElo "2226"]
[BlackElo "2218"]
[Annotator "RC"]
[PlyCount "140"]
[EventDate "2024.01.10"]
[EventType "tourn"]
[EventCountry "CZE"]
[SourceTitle "playchess.com"]
[Source "ChessBase"]
[SourceQuality "1"]
[TimeControl "40/5400+30:1800+30"]

1. d4 Nf6 {[%emt 0:02:22]} 2. c4 {[%emt 0:00:53]} g6 {[%emt 0:00:06]} 3. Nc3 {[%emt 0:00:08]} Bg7 {[%emt 0:00:08]} 4. g3 {[%emt 0:00:21]} O-O {[%emt 0:00:13]} 5. Bg2 {[%emt 0:00:03]} d6 {[%emt 0:00:10]} 6. e3 {[%emt 0:00:06]} e5 {[%emt 0:00:28]} 7. Nge2 {[%emt 0:00:13]} Re8 {[%emt 0:00:21]} 8. O-O {[%emt 0:00:03]} e4 {[%emt 0:00:56]} 9. h3 {[%emt 0:00:02]} h5 {[%emt 0:00:37]} 10. Nf4 {[%emt 0:00:03]} c6 {[%emt 0:02:31]} 11. f3 {[%emt 0:00:12]} exf3 {[%emt 0:01:29]} 12. Qxf3 {[%emt 0:00:05]} Na6 {[%emt 0:02:57]} 13. Bd2 {[%emt 0:21:50]} Qe7 {[%emt 0:01:59]} 14. Rae1 {[%emt 0:10:31]} Nc7 {[%emt 0:00:35]} 15. e4 {[%emt 0:07:19]} Nh7 {[%emt 0:00:25]} 16. Qf2 {[%emt 0:03:30]} Bd7 {[%emt 0:03:01]} 17. Kh2 {[%emt 0:06:37]} Rad8 {[%emt 0:05:00]} 18. b4 {[%emt 0:05:13]} Bc8 {[%emt 0:03:06]} 19. Be3 {[%emt 0:02:50]} Ne6 {[%emt 0:03:29]} 20. Rd1 {[%emt 0:02:35]} Nxf4 {[%emt 0:02:02]} 21. gxf4 {[%emt 0:03:57]} f5 {[%emt 0:01:07]} 22. Rfe1 {[%emt 0:09:04]} fxe4 {[%emt 0:00:55]} 23. Nxe4 {[%emt 0:00:45]} d5 {[%emt 0:03:29]} 24. cxd5 {[%emt 0:01:04]} cxd5 {[%emt 0:00:03]} 25. Nc5 {[%emt 0:00:48]} Bf5 {[%emt 0:00:40]} 26. Bc1 {[%emt 0:06:22]} Qf7 {[%emt 0:00:22]} 27. Nd3 {[%emt 0:04:44]} Rxe1 {[%emt 0:00:42]} 28. Qxe1 {[%emt 0:00:55]} Bxd3 {[%emt 0:00:36]} 29. Rxd3 {[%emt 0:00:22]} Re8 {[%emt 0:01:01]} 30. Qf1 {[%emt 0:03:28]} Qf5 {[%emt 0:00:41]} 31. Re3 {[%emt 0:01:08]} Rxe3 {[%emt 0:00:44]} 32. Bxe3 {[%emt 0:00:02]} Nf6 {[%emt 0:00:15]} 33. Qb5 {[%emt 0:01:28]} Bh6 {[%emt 0:01:05]} 34. Qxb7 {[%emt 0:01:25]} Bxf4+ {[%emt 0:00:08]} 35. Bxf4 {[%emt 0:00:08]} Qxf4+ {[%emt 0:00:04]} 36. Kh1 {[%emt 0:00:38]} Qxd4 {[%emt 0:00:37]} 37. Qe7 {[%emt 0:03:07]} h4 {[%emt 0:04:31]} 38. a4 {[%emt 0:01:31]} g5 {[%emt 0:03:29]} 39. Qe6+ {[%emt 0:02:54]} Kg7 {[%emt 0:00:30]} 40. Qf5 {[%emt 0:02:20]} Qe3 {[%emt 0:04:30]} 41. b5 {[%emt 0:04:27]} d4 {[%emt 0:01:06]} 42. Bf1 {[%emt 0:00:47]} Ne4 {[%emt 0:48:32]} 43. Qe5+ {[%emt 0:00:56]} Kf8 {[%emt 0:00:38]} 44. Qf5+ {[%emt 0:05:19]} Ke7 {[%emt 0:00:20]} 45. Qe5+ {[%emt 0:00:31]} Kd7 {[%emt 0:02:22]} 46. Qd5+ {[%emt 0:00:04]} Nd6 {[%emt 0:02:33]} 47. a5 {[%emt 0:04:10]} Qe4+ {[%emt 0:01:28]} 48. Qxe4 {[%emt 0:00:07]} Nxe4 {[%emt 0:00:02]} 49. Kg2 {[%emt 0:00:55]} Kc7 {[%emt 0:01:19]} 50. Bd3 {[%emt 0:02:09]} Nc5 {[%emt 0:00:21]} 51. Bf5 {[%emt 0:01:55]} Nb7 {[%emt 0:00:58]} 52. Kf3 {[%emt 0:07:14]} Nxa5 {[%emt 0:00:19]} 53. Kg4 {[%emt 0:00:34]} Nc4 {[%emt 0:01:15]} 54. Kxg5 {[%emt 0:01:16]} Nb2 {[%emt 0:00:45]} 55. Kxh4 {[%emt 0:00:37]} d3 {[%emt 0:00:19]} 56. Kg5 {[%emt 0:00:54]} d2 {[%emt 0:00:10]} 57. Bg4 {[%emt 0:02:10]} Kd8 {[%emt 0:14:32]} 58. Kf6 {[%emt 0:01:35]} d1=Q {[%emt 0:01:13]} 59. Bxd1 {[%emt 0:00:05]} Nxd1 {[%emt 0:00:03]} 60. Kf7 {[%emt 0:01:35]} Nc3 {[%emt 0:12:06]} 61. h4 {[%emt 0:00:03]} Nxb5 {[%emt 0:00:10]} 62. h5 {[%emt 0:00:12]} Kd7 {[%emt 0:01:31]} 63. h6 {[%emt 0:00:34]} Nd6+ {[%emt 0:00:02]} 64. Kf6 {[%emt 0:02:13]} Ke8 {[%emt 0:00:04]} 65. h7 {[%emt 0:02:07]} Nf7 {[%emt 0:00:03]} 66. Kf5 {[%emt 0:00:57]} Kf8 {[%emt 0:00:15]} 67. Ke6 {[%emt 0:00:47]} Kg7 {[%emt 0:00:24]} 68. Kd5 {[%emt 0:00:56]} Nd8 {[%emt 0:00:46]} 69. Kc5 {[%emt 0:00:24]} a5 {[%emt 0:00:13]} 70. Kb5 {[%emt 0:00:12]} Nb7 {[%emt 0:00:07]} 0-1